bitfinex-derivatives/quotes_ETHF0:USTF0_20250905
["timestamp","ask_amount","ask_price","bid_price","bid_amount"]
[1757083445169,0.6327,4295.4,4294.3,3.2078]
[1757083445365,2.1566,4294.8,4293.8,1.5432]
[1757083445670,0.298,4294.7,4293.8,1.5432]
[1757083446273,0.298,4294.7,4293.8,1.96237]
[1757083446473,0.298,4294.7,4293.9,0.41916]
[1757083446675,0.298,4294.7,4294.2,3.2078]
[1757083446971,1.5239,4294.6,4294.2,4.751]
[1757083447168,1.8219,4295.4,4294.6,1.5432]
[1757083447366,1.8219,4295.4,4294.7,3.2078]
[1757083447565,1.5239,4295.0,4293.6,3.2078]
[1757083447774,1.5239,4294.7,4293.6,3.2078]
[1757083447968,1.5239,4294.7,4293.6,3.62699]
[1757083448168,1.5239,4294.7,4293.4,1.5432]
[1757083448169,1.5239,4294.5,4293.1,3.2078]
[1757083448474,0.297,4294.4,4293.7,3.2078]
[1757083448976,3.2078,4295.2,4294.2,3.2078]
[1757083449181,1.5239,4295.1,4294.2,3.2078]
[1757083449476,1.5239,4295.0,4294.2,3.2078]
[1757083450274,0.297,4295.1,4294.3,1.8402]
[1757083450575,1.8209,4295.6,4294.8,1.5432]
[1757083451777,1.5239,4295.1,4293.5,1.048]
[1757083451974,0.297,4295.0,4294.0,4.751]
[1757083452673,0.297,4295.0,4294.0,5.048]
[1757083452974,0.297,4295.0,4294.5,3.2078]
[1757083453174,0.297,4295.0,4294.6,1.5432]
[1757083453576,1.5239,4294.6,4293.7,0.41918]
[1757083453978,3.2078,4295.2,4294.0,3.2078]
[1757083454280,3.2078,4295.2,4294.2,0.41912]
[1757083454576,0.6327,4295.4,4294.0,3.2078]
[1757083454577,1.5239,4294.6,4294.0,3.2078]
[1757083454775,1.5239,4294.1,4293.4,3.2078]
[1757083455377,0.297,4294.5,4293.5,0.41918]
[1757083456474,0.297,4294.5,4293.5,3.01037]
[1757083456675,0.297,4294.5,4293.5,2.5912]
[1757083456879,3.5048,4295.2,4294.0,1.96234]
[1757083457070,0.297,4295.2,4294.5,3.2078]
[1757083457270,0.297,4295.2,4294.5,5.46708]
[1757083457580,3.2078,4295.7,4294.5,6.51483]
[1757083457874,3.2078,4295.7,4294.5,5.4671]
[1757083458080,3.2078,4295.7,4295.0,3.62685]
[1757083458275,3.2078,4295.7,4295.0,3.2078]
[1757083458478,1.5607,4296.2,4295.1,0.297]
[1757083458975,1.5607,4296.2,4295.0,3.2078]
[1757083458976,1.5607,4296.2,4295.2,0.297]
[1757083459174,1.6826368,4296.2,4295.2,0.297]
[1757083459880,1.5607,4296.2,4295.2,0.297]
[1757083460079,3.2078,4296.3,4295.5,3.2078]
[1757083460381,0.297,4296.8,4296.0,3.62675]
[1757083460579,0.297,4296.8,4296.1,1.5668]
[1757083460775,3.7895,4296.5,4295.5,3.2078]
[1757083460973,1.5607,4296.4,4295.5,3.2078]
[1757083461677,3.7895,4296.5,4295.5,3.2078]
[1757083461877,1.5607,4295.6,4295.0,0.297]
[1757083462180,1.5607,4295.6,4294.7,3.5048]
[1757083462377,1.5607,4295.6,4294.8,1.5668]
[1757083462673,0.5817,4295.5,4294.5,3.2078]
[1757083463176,1.5607,4295.4,4294.5,3.2078]
[1757083463382,3.2078,4295.7,4294.6,1.98588]
[1757083463678,0.297,4295.8,4295.1,3.2078]
[1757083463886,0.297,4295.8,4295.1,4.7746]
[1757083464068,1.5607,4295.7,4295.1,3.2078]
[1757083464274,0.5817,4295.5,4294.6,3.2078]
[1757083464476,0.5817,4295.5,4294.6,4.7746]
[1757083464781,1.5607,4295.6,4295.2,1.5668]
[1757083464981,3.2078,4295.7,4295.1,3.2078]
[1757083465178,1.5607,4295.4,4294.6,3.2078]
[1757083465883,1.5607,4294.9,4294.1,3.2078]
[1757083466271,1.5607,4294.9,4294.1,5.49073]
[1757083466673,1.5607,4294.9,4294.1,5.0716]
[1757083466870,1.5607,4294.9,4294.2,0.297]
[1757083467185,3.2078,4295.7,4295.0,0.41903]
[1757083467381,1.5607,4296.7,4295.6,1.5668]
[1757083467581,3.2078,4297.3,4296.2,1.04734]
[1757083467778,3.2078,4297.3,4296.5,3.2078]
[1757083468081,1.5607,4297.4,4296.5,5.1935]
[1757083468276,0.1167253,4297.8,4296.6,1.04723]
[1757083468478,0.1167253,4297.8,4297.0,4.7746]
[1757083468780,1.5607,4296.9,4296.0,3.2078]
[1757083468978,3.2078,4296.2,4295.2,3.2078]
[1757083469176,1.5607,4296.1,4295.3,0.296]
[1757083469480,0.5817,4296.0,4295.2,3.2078]
[1757083469680,0.5817,4296.0,4294.2,1.04781]
[1757083469681,3.2078,4295.6,4294.3,1.9859]
[1757083469878,3.2078,4295.6,4294.7,0.41908]
[1757083470081,3.2078,4295.6,4294.8,1.5668]
[1757083470380,3.2078,4295.6,4294.9,0.296]
[1757083472882,0.5817,4295.5,4294.6,3.62689]
[1757083473178,1.5607,4295.4,4294.6,3.2078]
[1757083473981,0.8777,4295.5,4294.1,3.2078]
[1757083474181,1.5607,4294.9,4294.1,3.5038]
[1757083474381,1.5607,4294.9,4294.1,3.92294]
[1757083474581,1.5607,4294.9,4294.1,3.5038]
[1757083474781,1.5607,4294.9,4294.3,3.2078]
[1757083475788,1.5607,4294.9,4294.3,3.5038]
[1757083475984,1.5607,4294.9,4293.9,0.296]
[1757083476782,1.5607,4294.9,4294.0,1.98595]
[1757083477181,1.5607,4294.9,4294.0,1.5668]
[1757083477384,1.5607,4294.9,4294.0,1.98595]
[1757083477579,1.5607,4294.9,4293.7,0.41917]
[1757083477778,1.5607,4294.9,4293.8,0.71517]
[1757083477979,1.5607,4294.9,4293.8,0.296]
[1757083478179,1.5607,4294.9,4293.9,1.46703]
[1757083478381,1.5607,4294.9,4293.9,1.98593]
[1757083478584,1.5607,4294.9,4294.0,0.296]
[1757083478778,1.0607,4294.9,4294.0,0.296]
[1757083479082,3.7895,4295.0,4293.6,3.2078]
[1757083479282,3.7895,4295.0,4293.4,1.659147]
[1757083479283,0.5817,4293.5,4293.4,1.659147]
[1757083479486,1.11063,4293.5,4292.6,2.06511057]
[1757083479679,3.2078,4293.2,4292.6,2.06511057]
[1757083479885,0.296,4293.1,4292.6,2.06511057]
[1757083480086,0.296,4293.6,4292.8,3.2078]
[1757083480488,3.2078,4293.2,4292.2,3.2078]
[1757083480683,0.296,4293.1,4292.2,3.2078]
[1757083480880,1.8567,4293.1,4292.2,3.2078]
[1757083481185,1.8567,4293.1,4292.2,3.62711]
[1757083481380,1.8567,4293.1,4292.2,3.2078]
[1757083481584,1.5607,4292.8,4291.9,2.06511057]
[1757083482090,3.2078,4292.5,4291.9,2.06511057]
[1757083482285,1.5607,4292.3,4291.9,2.06511057]
[1757083482591,3.5164,4292.0,4290.7,1.5668]
[1757083482793,3.2078,4291.5,4290.7,1.5668]
[1757083482993,0.296,4291.4,4290.7,1.5668]
[1757083484291,0.296,4291.4,4290.8,0.41946]
[1757083484493,0.296,4291.4,4290.9,1.5668]
[1757083484789,0.296,4291.4,4291.0,0.5862]
[1757083484996,0.296,4291.4,4290.6,3.2078]
[1757083484997,0.3086,4291.3,4290.6,3.2078]
[1757083485491,3.2078,4291.0,4290.5,2.153]
[1757083485685,0.295,4290.9,4290.5,2.153]
[1757083485989,0.295,4290.9,4290.6,1.5668]
[1757083486387,0.3086,4290.8,4290.0,1.5668]
[1757083486885,0.3086,4290.8,4290.0,2.153]
[1757083487186,0.295,4290.9,4290.1,1.5668]
[1757083487385,3.2078,4290.5,4289.6,1.5668]
[1757083487589,0.295,4290.4,4289.6,1.5668]
[1757083488792,0.295,4290.4,4290.0,0.5866]
[1757083489091,0.295,4290.4,4290.1,1.577]
[1757083489486,0.295,4290.4,4290.3,1.577]
[1757083490490,0.5817,4292.5,4290.3,1.577]
[1757083490491,3.2078,4291.7,4291.5,0.5866]
[1757083490794,0.72558328,4292.8,4291.5,0.5866]
[1757083490795,3.2078,4292.3,4291.6,1.577]
[1757083491383,3.2078,4292.3,4291.7,0.41935]
[1757083491690,0.295,4292.5,4291.7,1.99637]
[1757083491890,0.295,4292.5,4292.1,0.41932]
[1757083492093,0.295,4292.5,4292.3,1.9963]
[1757083492292,0.295,4293.1,4293.0,2.1636]
[1757083492500,0.295,4293.7,4293.5,0.5866]
[1757083492792,0.295,4293.7,4293.6,1.577]
[1757083493892,0.295,4293.7,4293.6,1.99619]
[1757083494092,1.43757882,4294.3,4293.6,1.577]
[1757083495492,0.295,4294.3,4293.8,1.577]
[1757083495891,0.6058,4294.1,4293.7,3.2078]
[1757083496091,3.2078,4293.8,4293.5,1.577]
[1757083496390,0.295,4293.7,4292.6,3.2078]
[1757083496596,0.295,4293.7,4293.1,1.577]
[1757083500395,3.2078,4293.8,4293.1,3.2078]
[1757083500695,3.2078,4293.3,4291.4,3.2078]
[1757083500997,3.2078,4292.2,4291.2,3.62722]
[1757083501196,0.295,4292.1,4291.2,3.2078]
[1757083501387,0.295,4292.6,4291.6,0.41938]
[1757083501586,0.295,4292.6,4291.5,0.5866]
[1757083501587,3.2078,4292.0,4291.5,0.5866]
[1757083501791,1.7686,4291.9,4290.5,1.92932]
[1757083501991,1.7686,4291.9,4290.7,0.41947]
[1757083502297,1.7686,4291.9,4291.0,3.7944]
[1757083502495,1.4736,4291.3,4290.4,3.2078]
[1757083502701,0.294,4291.2,4290.4,3.2078]
[1757083502999,0.294,4291.2,4291.1,1.577]
[1757083503496,3.2078,4292.5,4291.6,1.577]
[1757083503695,4.79847919,4292.5,4291.6,1.577]
[1757083503993,4.79847919,4292.5,4291.4,3.2078]
[1757083503994,1.4736,4292.1,4291.1,1.577]
[1757083504195,0.294,4292.0,4291.1,1.577]
[1757083505112,3.2078,4291.2,4290.5,2.1636]
[1757083505291,0.294,4291.4,4290.5,2.1636]
[1757083505489,3.2078,4291.1,4290.5,1.577]
[1757083505692,3.2078,4290.6,4289.5,0.5866]
[1757083505898,4.6814,4290.3,4288.7,3.2078]
[1757083506188,3.2078,4288.9,4288.5,2.06635338]
[1757083506397,1.4736,4288.7,4288.5,2.06635338]
[1757083506594,0.294,4288.8,4288.5,2.06635338]
[1757083507196,0.294,4289.3,4288.5,2.06635338]
[1757083508000,1.4736,4288.9,4288.5,2.06635338]
[1757083508194,0.294,4288.8,4288.5,2.06635338]
[1757083508392,1.4736,4288.7,4288.5,2.06635338]
[1757083508594,1.88576336,4289.3,4288.6,1.577]
[1757083508794,1.88576336,4289.3,4288.5,2.06635338]
[1757083508999,1.88576336,4289.3,4288.5,1.20063381]
[1757083509000,3.2078,4288.6,4288.5,1.20063381]
[1757083509298,4.9754,4288.6,4288.5,1.20063381]
[1757083509695,7.73498,4288.6,4286.7,3.2078]
[1757083509892,3.2078,4286.8,4286.4,5.30171139]
[1757083510091,3.5018,4286.7,4285.6,2.07655726]
[1757083510293,3.2078,4286.2,4285.6,2.07655726]
[1757083510492,0.294,4286.7,4285.6,2.07655726]
[1757083510493,0.294,4286.7,4286.1,1.577]
[1757083510689,0.294,4287.4,4286.6,1.577]
[1757083511601,0.294,4287.4,4285.8,2.1636]
[1757083511791,1.4736,4286.8,4285.8,1.577]
[1757083512094,0.294,4286.7,4285.8,1.577]
[1757083512799,0.294,4286.7,4285.9,0.41994]
[1757083513002,0.294,4286.7,4285.8,1.577]
[1757083513202,1.7676,4286.7,4285.8,1.577]
[1757083513798,0.294,4287.1,4286.3,1.99689]
[1757083514000,0.294,4287.1,4286.4,0.41988]
[1757083514203,0.294,4287.1,4286.6,0.41986]
[1757083514399,0.294,4287.1,4286.7,3.2078]
[1757083514600,0.294,4287.1,4287.0,1.577]
[1757083514903,0.294,4287.1,4286.7,3.2078]
[1757083515108,1.7676,4287.1,4286.3,1.577]
[1757083515504,4.9754,4287.1,4286.2,3.2078]
[1757083515709,4.9754,4287.1,4284.6,0.5866]
[1757083515710,1.4736,4286.2,4285.2,1.577]
[1757083515904,1.4736,4285.7,4284.6,2.1636]
[1757083516207,0.294,4285.6,4285.2,1.577]
[1757083516409,0.294,4286.0,4285.2,1.577]
[1757083516904,1.4736,4285.6,4284.3,1.577]
[1757083517109,0.294,4285.5,4284.3,1.577]
[1757083517309,0.294,4285.5,4284.6,3.2078]
[1757083518111,0.294,4285.5,4283.5,3.2078]
[1757083518112,2.1965,4284.6,4283.5,3.2078]
[1757083518305,2.1965,4284.6,4283.0,3.2078]
[1757083518306,0.5922,4284.0,4283.0,3.2078]
[1757083518496,0.294,4283.9,4282.8,0.17745193]
[1757083518801,1.6043,4283.2,4282.8,0.17745193]
[1757083519111,0.294,4283.1,4282.8,0.17745193]
[1757083519403,1.6043,4283.0,4281.8,3.2078]
[1757083519596,0.5922,4282.2,4280.8,3.2078]
[1757083519797,1.6043,4282.1,4281.4,3.2078]
[1757083520098,0.294,4282.2,4281.3,3.2078]
[1757083520295,1.6043,4282.7,4281.5,1.5166]
[1757083520495,0.294,4283.3,4282.3,1.5166]
[1757083520803,3.2078,4283.1,4281.7,1.5166]
[1757083520995,1.6043,4283.0,4282.0,3.2078]
[1757083521198,3.2078,4283.2,4282.3,0.42029]
[1757083521405,1.6043,4283.1,4282.1,1.5166]
[1757083521906,1.6043,4283.1,4282.2,0.4203]
[1757083522103,1.6043,4283.2,4282.2,3.2078]
[1757083522304,4.8121,4283.2,4282.2,3.2078]
[1757083522710,3.2078,4283.2,4282.2,3.2078]
[1757083522902,3.2078,4283.9,4283.1,1.5166]
[1757083523207,1.6043,4283.6,4282.5,3.2078]
[1757083523403,0.294,4283.5,4283.0,3.2078]
[1757083523600,0.294,4283.5,4283.1,1.5166]
[1757083523805,1.6043,4283.4,4283.0,3.2078]
[1757083524006,0.5922,4283.3,4282.4,3.2078]
[1757083524304,1.6043,4282.8,4281.9,3.0878]
[1757083524513,4.8121,4282.0,4281.1,0.42041]
[1757083524703,0.293,4282.2,4281.3,1.5166]
[1757083524898,0.293,4282.8,4281.9,1.93692]
[1757083525099,0.293,4282.8,4281.9,1.5166]
[1757083525304,1.6043,4285.3,4282.8,2.10123]
[1757083525602,1.6043,4285.8,4284.8,1.5166]
[1757083525805,1.6043,4285.8,4285.2,3.2078]
[1757083526006,1.6043,4286.3,4285.7,3.2078]
[1757083526206,1.6043,4286.0,4285.1,3.2078]
[1757083526407,0.293,4285.9,4284.6,1.5166]
[1757083526603,1.14257882,4286.7,4285.8,3.2078]
[1757083526808,1.14257882,4286.7,4286.4,3.2078]
[1757083527511,5.6043,4286.6,4285.7,3.2078]
[1757083527710,1.6043,4286.6,4285.7,3.2078]
[1757083528114,1.6043,4285.1,4282.5,1.5166]
[1757083528414,3.2078,4282.6,4281.9,0.5841]
[1757083528617,0.293,4282.5,4281.9,0.5841]
[1757083528815,0.293,4282.5,4281.3,3.2078]
[1757083529112,3.2078,4282.9,4281.4,0.42037]
[1757083529315,0.293,4282.8,4281.3,3.2078]
[1757083529509,3.2078,4282.1,4281.3,3.62818]
[1757083529709,3.5008,4282.8,4281.5,1.05093]
[1757083529911,3.2078,4283.4,4281.9,0.42033]
[1757083530115,3.2078,4282.7,4282.0,0.42032]
[1757083530315,0.293,4283.3,4282.1,1.5166]
[1757083530503,0.293,4283.3,4282.3,1.5166]
[1757083530702,3.2078,4283.9,4282.5,1.5166]
[1757083530904,3.5008,4284.0,4282.7,1.5166]
[1757083531113,3.2078,4283.5,4282.7,1.5166]
[1757083531616,3.2078,4284.0,4282.7,1.5166]
[1757083531818,0.293,4284.1,4283.1,3.8183]
[1757083532116,3.2078,4284.2,4283.4,3.2078]
[1757083532308,3.2078,4284.2,4283.2,1.5166]
[1757083532615,4.8121,4284.1,4282.6,3.2078]
[1757083532820,3.2078,4283.6,4282.6,3.2078]
[1757083533009,2.39389,4283.5,4282.6,3.2078]
[1757083533210,1.05056,4283.0,4282.6,4.7244]
[1757083533409,0.42025,4282.7,4282.6,3.2078]
[1757083533615,3.2078,4283.6,4282.9,0.42022]
[1757083533911,3.2078,4283.6,4282.7,4.0]
[1757083533912,3.5008,4284.2,4283.6,0.42016]
[1757083534117,0.293,4284.4,4283.5,0.42016]
[1757083534411,0.293,4284.4,4283.8,1.5166]
[1757083534617,3.5008,4284.7,4283.8,1.93673]
[1757083534811,3.5008,4284.7,4284.3,1.5166]
[1757083534812,0.293,4284.7,4284.3,1.5166]
[1757083535021,3.2078,4285.2,4284.2,4.7244]
[1757083535312,0.293,4285.1,4284.2,4.7244]
[1757083535515,3.2078,4285.7,4284.8,1.05012]
[1757083535818,2.74687882,4286.0,4285.6,3.2078]
[1757083536010,3.2078,4285.7,4284.9,3.2078]
[1757083536212,1.6043,4285.5,4284.9,3.2078]
[1757083536416,1.6043,4285.5,4284.3,3.2078]
[1757083536617,0.293,4285.4,4284.3,3.2078]
[1757083538710,3.2078,4284.7,4283.8,3.2078]
[1757083539007,3.2078,4285.2,4284.0,0.42011]
[1757083539211,0.293,4285.1,4284.3,3.2078]
[1757083539413,1.6043,4285.0,4284.3,3.2078]
[1757083539616,1.6043,4285.0,4283.8,0.71314]
[1757083539617,0.293,4285.1,4284.2,3.2078]
[1757083539820,3.2078,4284.4,4283.7,3.2078]
[1757083540016,3.2078,4283.9,4282.1,3.2078]
[1757083540218,1.6043,4283.1,4282.1,3.2078]
[1757083540416,1.8973,4283.1,4282.1,3.2078]
[1757083541215,0.293,4283.0,4282.2,0.4203]
[1757083541522,0.293,4283.0,4282.1,3.2078]
[1757083541723,1.6043,4283.1,4282.1,3.2078]
[1757083541916,3.2078,4282.7,4281.7,0.42034]
[1757083542123,0.42046,4280.6,4280.5,3.2078]
[1757083542422,1.05095,4281.4,4280.9,0.42041]
[1757083542625,0.42039,4281.3,4281.2,3.2078]
[1757083543014,0.42039,4281.3,4281.2,7.2078]
[1757083543628,0.42039,4281.3,4281.2,7.6282]
[1757083543919,2.02469,4281.3,4281.2,3.2078]
[1757083544117,2.02469,4281.3,4280.7,3.2078]
[1757083544118,1.6043,4281.3,4280.7,3.2078]
[1757083544826,1.6043,4281.3,4280.1,3.2078]
[1757083545123,0.293,4281.4,4280.1,3.2078]
[1757083545313,1.6043,4280.5,4279.6,0.42055]
[1757083545519,0.293,4280.4,4279.5,3.2078]
[1757083545712,1.6043,4280.4,4280.0,3.2078]
[1757083545917,0.293,4280.4,4280.0,3.2078]
[1757083546126,1.6043,4280.3,4279.5,3.2078]
[1757083546316,1.6043,4280.3,4279.7,3.2078]
[1757083546520,3.2078,4280.2,4279.3,4.2078]
[1757083546820,1.6043,4280.1,4279.3,1.0]
[1757083547026,1.6043,4280.1,4279.3,4.2078]
[1757083547226,1.6043,4280.1,4279.4,0.42057]
[1757083547423,3.2078,4280.2,4279.8,0.42053]
[1757083547726,3.2078,4280.7,4280.2,0.42049]
[1757083547921,0.292,4280.5,4279.5,1.05142]
[1757083548123,0.5922,4280.5,4279.9,0.42052]
[1757083548319,1.6171,4280.3,4280.2,3.2078]
[1757083548520,0.292,4280.7,4280.5,0.42045]
[1757083548826,0.292,4280.7,4280.2,3.2078]
[1757083549029,1.6171,4280.4,4279.3,4.2078]
[1757083549216,1.6171,4279.0,4277.5,3.2078]
[1757083549418,1.6171,4279.0,4276.3,2.0541]
[1757083549419,0.6425,4278.4,4277.0,3.2078]
[1757083549721,3.2078,4278.7,4277.4,1.05193]
[1757083549923,4.8249,4278.9,4277.0,4.5017]
[1757083550123,0.42078,4277.3,4277.2,0.42079]
[1757083550422,1.6171,4277.7,4277.2,0.42077]
[1757083550623,0.71273,4278.0,4277.9,0.42072]
[1757083550823,1.05169,4278.4,4277.7,0.42073]
[1757083551028,4.8249,4279.0,4277.8,4.2097]
[1757083551221,0.42069,4278.3,4278.2,0.42069]
[1757083551418,0.42072,4278.0,4277.9,0.42072]
[1757083551624,0.42072,4278.1,4278.0,0.4207]
[1757083551826,0.42067,4278.5,4277.9,1.05181]
[1757083552029,0.42064,4278.8,4278.7,0.42064]
[1757083552225,2.66845,4279.8,4278.7,5.05161]
[1757083552434,0.42053,4280.0,4279.9,0.42052]
[1757083552631,0.42053,4279.9,4279.8,0.42053]
[1757083552924,0.42059,4279.2,4279.1,0.42058]
[1757083553129,0.42058,4279.3,4279.2,3.2078]
[1757083553327,0.42063,4278.8,4278.7,3.62844]
[1757083553528,0.292,4279.3,4278.7,3.2078]
[1757083553728,0.42058,4279.3,4279.2,4.63028]
[1757083553931,2.2596,4280.5,4279.2,3.2078]
[1757083554124,0.42053,4279.8,4279.7,3.2078]
[1757083554433,0.42053,4279.8,4279.7,3.62834]
[1757083554730,0.42048,4280.4,4280.3,0.42047]
[1757083554929,0.42049,4280.3,4280.2,3.2078]
[1757083555324,1.6171,4280.3,4279.5,3.2078]
[1757083555526,0.42055,4279.6,4279.5,4.63026]
[1757083555825,0.42053,4280.0,4279.9,0.42051]
[1757083556030,0.42053,4280.0,4279.9,1.0019]
[1757083556224,0.42053,4280.0,4279.5,3.4998]
[1757083556225,0.42055,4279.7,4279.6,0.42055]
[1757083556426,0.292,4280.5,4279.8,1.0019]
[1757083556728,0.42045,4280.8,4280.7,1.42233]
[1757083556934,0.42041,4281.2,4281.1,1.4223]
[1757083557135,1.14257882,4281.3,4281.2,0.4204]
[1757083557431,1.14257882,4281.3,4281.2,4.6301]
[1757083557730,1e-08,4281.3,4281.2,8.6301]
[1757083558228,1e-08,4281.3,4281.2,8.86367999]
[1757083558431,0.42025,4282.7,4282.6,0.42026]
[1757083558634,0.42025,4282.7,4282.3,1.05071]
[1757083558635,0.42025,4282.8,4282.7,0.42024]
[1757083558840,2.66779,4282.5,4282.2,3.2078]
[1757083559032,0.42028,4282.5,4282.4,0.42027]
[1757083559334,0.42025,4282.7,4282.6,0.42025]
[1757083559532,0.42024,4283.0,4282.9,0.42023]
[1757083559732,0.42028,4282.4,4282.3,0.292]
[1757083560328,3.2078,4283.9,4283.1,0.42021]
[1757083560629,1.6171,4284.3,4283.4,1.05046]
[1757083560834,1.6171,4284.8,4284.2,3.2078]
[1757083561040,3.2078,4285.1,4284.2,3.2078]
[1757083561232,3.2078,4285.1,4284.2,3.91989]
[1757083561431,3.2078,4285.1,4284.2,3.4998]
[1757083561637,3.2078,4285.6,4284.7,3.2078]
[1757083561936,1.6171,4285.0,4284.0,0.292]
[1757083562139,1.6171,4285.0,4284.2,3.2078]
[1757083562335,3.2078,4285.1,4284.3,1.05024]
[1757083562543,3.2078,4285.6,4284.9,3.2078]
[1757083562734,0.6425,4286.1,4285.1,0.42001]
[1757083563036,1.6171,4286.0,4284.9,3.2078]
[1757083563228,2.6614904,4286.2,4285.0,0.23335]
[1757083563433,2.6614904,4286.2,4285.9,3.2078]
[1757083563629,2.6614904,4286.2,4286.1,0.41992]
[1757083563937,2.6614904,4286.2,4286.0,0.292]
[1757083564433,1.6171,4286.8,4286.0,0.292]
[1757083564634,1.6171,4286.7,4285.3,3.2078]
[1757083564843,1.6171,4286.7,4286.0,3.2078]
[1757083565039,2.2596,4286.1,4286.0,3.2078]
[1757083565239,1.6171,4286.1,4286.0,3.2078]
[1757083565438,1.6171,4286.0,4285.3,0.292]
[1757083565642,1.6171,4286.0,4284.9,0.292]
[1757083565839,1.6171,4286.0,4284.7,3.2078]
[1757083565840,0.292,4285.9,4284.7,3.2078]
[1757083566139,1.6171,4285.3,4284.5,3.2078]
[1757083566335,1.9091,4285.3,4284.5,3.2078]
[1757083566641,1.6171,4285.2,4283.9,3.4998]
[1757083566837,0.6425,4284.7,4283.9,3.4998]
[1757083567144,0.42012,4284.0,4283.9,3.91993]
[1757083567438,0.42012,4284.0,4283.9,3.4998]
[1757083567642,0.42012,4284.0,4283.9,3.2078]
[1757083567942,1.6171,4283.9,4282.9,3.2078]
[1757083568135,0.6425,4284.7,4284.0,0.42012]
[1757083568438,0.9335,4285.4,4284.6,3.2078]
[1757083568638,0.9335,4285.4,4284.8,0.42003]
[1757083568833,32.225,4287.1,4285.1,3.2078]
[1757083568834,0.291,4286.4,4285.1,3.2078]
[1757083569037,1.6171,4286.0,4285.1,3.2078]
[1757083569637,1.6171,4286.0,4285.2,0.42]
[1757083569836,1.6171,4285.8,4285.1,3.2078]
[1757083570043,1.6171,4285.8,4285.2,0.41999]
[1757083570240,1.6171,4285.8,4285.7,3.2078]
[1757083570642,3.2078,4286.6,4285.8,0.41993]
[1757083570944,1.6171,4286.5,4285.7,3.2078]
[1757083571138,1.6171,4286.5,4285.7,3.62774]
[1757083571342,1.6171,4286.5,4285.7,3.2078]
[1757083571543,3.4988,4286.6,4285.7,3.2078]
[1757083571844,1.9081,4286.5,4285.7,3.2078]
[1757083572440,0.6425,4286.1,4284.7,0.42005]
[1757083572645,1.9081,4286.0,4285.1,3.62781]
[1757083572954,1.9081,4286.0,4285.2,0.41999]
[1757083573147,1.6171,4286.0,4285.4,0.41998]
[1757083573542,1.6171,4286.0,4285.2,3.2078]
[1757083573754,1.6171,4286.0,4285.0,0.42002]
[1757083574056,0.291,4285.9,4284.9,0.291]
[1757083574252,1.6171,4286.0,4285.2,0.41999]
[1757083574447,0.6425,4285.4,4283.4,3.2078]
[1757083574652,0.6425,4285.4,4282.0,32.22]
[1757083574653,1.6171,4284.6,4283.3,0.42019]
[1757083574852,1.6171,4283.8,4282.9,0.291]
[1757083575147,1.6171,4283.8,4283.0,0.42021]
[1757083575348,1.6171,4283.8,4283.0,0.42022]
[1757083575542,1.6171,4283.8,4282.9,0.291]
[1757083575746,1.6171,4283.4,4282.6,3.4988]
[1757083575955,1.6171,4283.4,4282.7,0.42025]
[1757083576157,1.6171,4283.4,4282.6,3.4988]
[1757083576350,1.6171,4283.4,4283.0,0.42021]
[1757083576549,5.7584,4284.0,4283.1,0.4202]
[1757083576749,5.4674,4284.0,4283.1,0.291]
[1757083577145,3.2078,4283.4,4281.7,3.2078]
[1757083577350,1.6171,4283.2,4282.2,3.2078]
[1757083577656,1.6171,4283.2,4282.1,0.94478]
[1757083577657,1.6171,4282.8,4282.1,0.291]
[1757083578254,1.6171,4282.8,4282.1,0.71131]
[1757083578447,3.2078,4282.9,4282.1,0.291]
[1757083578754,0.6425,4283.3,4282.1,1.34177]
[1757083578950,0.6425,4283.3,4282.6,0.42025]
[1757083579256,1.4865,4283.2,4282.2,0.4203]
[1757083579558,1.7775,4283.2,4282.2,3.6281]
[1757083579853,1.7775,4283.2,4282.2,0.4203]
[1757083580051,1.7775,4283.2,4282.1,3.4988]
[1757083580253,0.6454,4282.2,4282.0,3.2078]
[1757083580453,1.4865,4282.1,4281.7,3.2078]
[1757083580655,0.6454,4282.2,4281.7,3.2078]
[1757083580856,1.4865,4282.6,4281.7,3.2078]
[1757083581151,1.4865,4282.1,4281.4,0.291]
[1757083581660,4.1442,4282.2,4280.7,3.62824]
[1757083581847,1.4865,4282.1,4281.3,0.42038]
[1757083582048,0.291,4282.3,4281.7,4.7117]
[1757083582455,0.291,4282.6,4281.8,1.5039]
[1757083582752,3.2078,4282.7,4282.0,0.42031]
[1757083582962,0.291,4282.8,4282.6,1.5039]
[1757083583150,0.52452,4282.8,4281.8,1.5039]
[1757083583656,0.23352,4282.7,4281.7,3.2078]
[1757083583955,0.291,4282.6,4281.7,4.7117]
[1757083584155,0.291,4282.5,4281.7,4.7117]
[1757083584346,3.2078,4282.5,4281.7,4.7117]
[1757083584552,0.291,4282.4,4281.1,4.7117]
[1757083584852,0.291,4282.3,4281.1,4.7117]
[1757083585052,3.2078,4282.5,4281.1,3.2078]
[1757083585253,3.2078,4282.5,4281.2,1.5039]
[1757083585254,0.291,4282.4,4281.2,1.5039]
[1757083585457,0.291,4282.4,4280.8,1.5039]
[1757083585754,3.2078,4281.5,4280.5,3.2078]